[Event "3rd FIDE WCCC Rapid G10 2019"]
[Site "Minsk"]
[Date "2019.08.17"]
[Round "8.6"]
[White "Kuzmina, Varvara"]
[Black "Tsareva, Darya"]
[Result "1-0"]
[ECO "A05"]
[WhiteElo "1262"]
[BlackElo "1177"]
[Annotator "NA"]
[PlyCount "99"]
[EventDate "2019.08.16"]
[EventType "swiss"]
[EventCountry "BLR"]
[SourceTitle "playchess.com"]
[Source "ChessBase"]
[SourceQuality "1"]
[TimeControl "600+5"]

1. Nf3 {[%emt 0:00:00]} Nf6 {[%emt 0:00:00]} 2. g3 {[%emt 0:00:00]} d5 {[%emt 0:00:00]} 3. Bg2 {[%emt 0:00:01]} c6 {[%emt 0:00:02]} 4. O-O {[%emt 0:00:03]} g6 {[%emt 0:00:01]} 5. d4 {[%emt 0:00:02]} Bg7 {[%emt 0:00:02]} 6. b3 {[%emt 0:00:07]} O-O {[%emt 0:00:03]} 7. Bb2 {[%emt 0:00:03]} Qc7 {[%emt 0:00:25]} 8. Nbd2 {[%emt 0:00:37]} Nbd7 {[%emt 0:00:51]} 9. c4 {[%emt 0:00:06]} dxc4 {[%emt 0:01:16]} 10. Nxc4 {[%emt 0:00:07]} Nb6 {[%emt 0:00:09]} 11. Nfe5 {[%emt 0:00:22]} Nfd7 {[%emt 0:00:10]} 12. Nxb6 {[%emt 0:00:04]} Qxb6 {[%emt 0:00:27]} 13. Nc4 {[%emt 0:00:05]} Qc7 {[%emt 0:00:03]} 14. d5 {[%emt 0:00:45]} Bxb2 {[%emt 0:00:17]} 15. Nxb2 {[%emt 0:00:02]} cxd5 {[%emt 0:00:04]} 16. Bxd5 {[%emt 0:00:23]} Rd8 {[%emt 0:00:28]} 17. Bg2 {[%emt 0:00:15]} Rb8 {[%emt 0:00:56]} 18. Qc1 {[%emt 0:00:24]} Qe5 {[%emt 0:00:38]} 19. Nc4 {[%emt 0:00:39]} Qg7 {[%emt 0:00:16]} 20. Qb2 {[%emt 0:00:35]} Nf6 {[%emt 0:00:45]} 21. Rfd1 {[%emt 0:00:09]} Bd7 {[%emt 0:00:37]} 22. Qa3 {[%emt 0:00:18]} a6 {[%emt 0:01:28]} 23. Qxe7 {[%emt 0:01:05]} Re8 {[%emt 0:00:13]} 24. Qd6 {[%emt 0:00:09]} b5 {[%emt 0:00:13]} 25. Nb6 {[%emt 0:00:52]} Rbd8 26. Nxd7 {[%emt 0:00:13]} Nxd7 {[%emt 0:01:02]} 27. Qxa6 {[%emt 0:00:29]} Rxe2 {[%emt 0:00:35]} 28. Qxb5 {[%emt 0:00:10]} Re7 {[%emt 0:00:02]} 29. Rac1 {[%emt 0:00:18]} Kf8 {[%emt 0:00:27]} 30. Rc7 {[%emt 0:00:32]} f5 {[%emt 0:00:11]} 31. Bc6 {[%emt 0:00:18]} Ke8 {[%emt 0:00:28]} 32. Bxd7+ {[%emt 0:00:02]} Rdxd7 {[%emt 0:00:02]} 33. Rcxd7 {[%emt 0:00:07]} Rxd7 {[%emt 0:00:01]} 34. Qxd7+ {[%emt 0:00:01]} Qxd7 {[%emt 0:00:02]} 35. Rxd7 {[%emt 0:00:01]} Kxd7 {[%emt 0:00:01]} 36. Kf1 {[%emt 0:00:01]} Kc6 {[%emt 0:00:02]} 37. Ke2 {[%emt 0:00:00]} Kb5 {[%emt 0:00:00]} 38. Kd3 {[%emt 0:00:01]} Kb4 {[%emt 0:00:01]} 39. Kd4 {[%emt 0:00:01]} Ka3 {[%emt 0:00:01]} 40. Ke5 {[%emt 0:00:01]} Kxa2 {[%emt 0:00:02]} 41. b4 {[%emt 0:00:03]} Ka3 {[%emt 0:00:02]} 42. b5 {[%emt 0:00:01]} Ka4 {[%emt 0:00:02]} 43. b6 {[%emt 0:00:01]} Ka5 {[%emt 0:00:07]} 44. b7 {[%emt 0:00:00]} Ka4 {[%emt 0:00:01]} 45. b8=Q {[%emt 0:00:02]} Ka3 {[%emt 0:00:01]} 46. Qb5 {[%emt 0:00:01]} Ka2 {[%emt 0:00:01]} 47. Qb4 {[%emt 0:00:01]} f4 {[%emt 0:00:01]} 48. Kd4 {[%emt 0:00:06]} fxg3 {[%emt 0:00:02]} 49. Kc3 {[%emt 0:00:03]} gxf2 {[%emt 0:00:02]} 50. Qb2# {[%emt 0:00:01]} 1-0

[Event "3rd FIDE WCCC Rapid G10 2019"]
[Site "Minsk"]
[Date "2019.08.17"]
[Round "9.1"]
[White "Khamdamova, Afruza"]
[Black "Shukhman, Anna"]
[Result "0-1"]
[ECO "B43"]
[WhiteElo "1607"]
[BlackElo "1806"]
[Annotator "NA"]
[PlyCount "108"]
[EventDate "2019.08.16"]
[EventType "swiss"]
[EventCountry "BLR"]
[SourceTitle "playchess.com"]
[Source "ChessBase"]
[SourceQuality "1"]
[TimeControl "600+5"]

1. e4 {[%emt 0:00:00]} c5 {[%emt 0:00:00]} 2. Nf3 {[%emt 0:00:00]} e6 {[%emt 0:00:00]} 3. d4 {[%emt 0:00:00]} cxd4 {[%emt 0:00:00]} 4. Nxd4 {[%emt 0:00:00]} a6 {[%emt 0:00:00]} 5. Nc3 {[%emt 0:00:02]} Qc7 {[%emt 0:00:01]} 6. Be2 {[%emt 0:00:04]} b5 {[%emt 0:00:01]} 7. a3 {[%emt 0:00:20]} Bb7 {[%emt 0:00:03]} 8. O-O {[%emt 0:00:04]} Nf6 {[%emt 0:00:05]} 9. Bf3 {[%emt 0:00:06]} Nc6 {[%emt 0:00:02]} 10. Be3 {[%emt 0:00:09]} Ne5 {[%emt 0:00:03]} 11. Kh1 {[%emt 0:00:58]} Be7 {[%emt 0:00:13]} 12. Bf4 {[%emt 0:00:08]} d6 {[%emt 0:00:06]} 13. Bxe5 {[%emt 0:00:29]} dxe5 {[%emt 0:00:02]} 14. Nb3 {[%emt 0:00:04]} O-O {[%emt 0:00:07]} 15. Qe2 {[%emt 0:00:02]} Rfd8 {[%emt 0:00:11]} 16. Rad1 {[%emt 0:00:12]} Rac8 {[%emt 0:00:27]} 17. Qe3 {[%emt 0:00:16]} b4 {[%emt 0:00:55]} 18. axb4 {[%emt 0:00:27]} Bxb4 {[%emt 0:00:04]} 19. Na2 {[%emt 0:01:13]} Be7 {[%emt 0:00:39]} 20. c3 {[%emt 0:00:11]} Qc4 {[%emt 0:01:09]} 21. Nac1 {[%emt 0:00:06]} Qa4 {[%emt 0:01:33]} 22. Qa7 {[%emt 0:01:26]} Qb5 {[%emt 0:01:16]} 23. c4 {[%emt 0:00:31]} Qb4 {[%emt 0:00:48]} 24. c5 {[%emt 0:00:47]} Bf8 {[%emt 0:01:44]} 25. Qb6 {[%emt 0:02:38]} Qxb6 {[%emt 0:01:00]} 26. cxb6 {[%emt 0:00:01]} Rxd1 {[%emt 0:00:19]} 27. Rxd1 {[%emt 0:00:01]} Rc6 {[%emt 0:00:12]} 28. Na5 {[%emt 0:00:26]} Rxb6 {[%emt 0:00:04]} 29. Nxb7 {[%emt 0:00:01]} Rxb7 {[%emt 0:00:01]} 30. Nd3 {[%emt 0:00:02]} Rb3 {[%emt 0:00:07]} 31. Kg1 {[%emt 0:00:11]} g6 {[%emt 0:00:07]} 32. Kf1 {[%emt 0:00:02]} Kg7 {[%emt 0:00:05]} 33. Ke2 {[%emt 0:00:03]} Rb8 {[%emt 0:00:21]} 34. Ra1 {[%emt 0:00:10]} Rb6 {[%emt 0:00:03]} 35. Rc1 {[%emt 0:00:35]} a5 {[%emt 0:00:19]} 36. Rc5 {[%emt 0:00:08]} Bxc5 {[%emt 0:00:03]} 37. Nxc5 {[%emt 0:00:23]} Rxb2+ {[%emt 0:00:02]} 38. Ke3 {[%emt 0:00:10]} Rc2 {[%emt 0:00:07]} 39. Nd3 {[%emt 0:00:06]} Nd7 {[%emt 0:00:08]} 40. Bd1 {[%emt 0:00:05]} Ra2 {[%emt 0:00:02]} 41. Bb3 {[%emt 0:00:26]} Ra3 {[%emt 0:00:04]} 42. Bc4 {[%emt 0:00:08]} Nc5 {[%emt 0:00:05]} 43. f3 {[%emt 0:00:04]} Nxd3 {[%emt 0:00:03]} 44. Bxd3 {[%emt 0:00:01]} a4 {[%emt 0:00:01]} 45. Kd2 {[%emt 0:00:03]} Ra2+ {[%emt 0:00:02]} 46. Bc2 {[%emt 0:00:00]} Rb2 {[%emt 0:00:07]} 47. Kc3 {[%emt 0:00:11]} a3 {[%emt 0:00:04]} 48. g3 {[%emt 0:00:03]} Rb8 {[%emt 0:00:05]} 49. Bb3 {[%emt 0:00:06]} Kf8 {[%emt 0:00:09]} 50. h4 {[%emt 0:00:06]} Ke7 {[%emt 0:00:02]} 51. Kc2 {[%emt 0:00:08]} Kd6 {[%emt 0:00:01]} 52. Kc3 {[%emt 0:00:03]} Kc5 {[%emt 0:00:02]} 53. g4 {[%emt 0:00:06]} Rxb3+ {[%emt 0:00:12]} 54. Kxb3 {[%emt 0:00:03]} Kd4 {[%emt 0:00:01]} 0-1

[Event "3rd FIDE WCCC Rapid G10 2019"]
[Site "Minsk"]
[Date "2019.08.17"]
[Round "9.2"]
[White "Mizerova, Yana"]
[Black "Nurgaliyeva, Zarina"]
[Result "0-1"]
[ECO "A05"]
[WhiteElo "1336"]
[BlackElo "1474"]
[Annotator "NA"]
[PlyCount "78"]
[EventDate "2019.08.16"]
[EventType "swiss"]
[EventCountry "BLR"]
[SourceTitle "playchess.com"]
[Source "ChessBase"]
[SourceQuality "1"]
[TimeControl "600+5"]

1. Nf3 {[%emt 0:00:00]} Nf6 {[%emt 0:00:00]} 2. g3 {[%emt 0:00:00]} e6 {[%emt 0:00:01]} 3. Bg2 {[%emt 0:00:00]} d5 {[%emt 0:00:02]} 4. d3 {[%emt 0:00:10]} Nbd7 {[%emt 0:00:05]} 5. O-O {[%emt 0:00:09]} Be7 {[%emt 0:00:02]} 6. Bf4 {[%emt 0:00:15]} O-O {[%emt 0:00:12]} 7. Nbd2 {[%emt 0:00:32]} b6 {[%emt 0:00:19]} 8. c4 {[%emt 0:00:23]} Bb7 {[%emt 0:00:05]} 9. Re1 {[%emt 0:00:49]} c5 {[%emt 0:00:17]} 10. cxd5 {[%emt 0:01:08]} Nxd5 {[%emt 0:00:36]} 11. Be5 {[%emt 0:01:12]} Nxe5 {[%emt 0:00:20]} 12. Nxe5 {[%emt 0:00:03]} Bf6 {[%emt 0:00:07]} 13. Ndf3 {[%emt 0:00:46]} Qc7 {[%emt 0:00:20]} 14. d4 {[%emt 0:00:49]} cxd4 {[%emt 0:00:14]} 15. Qxd4 {[%emt 0:00:35]} Rad8 {[%emt 0:00:06]} 16. Rac1 {[%emt 0:00:08]} Qb8 {[%emt 0:00:09]} 17. g4 {[%emt 0:00:51]} Ne7 {[%emt 0:00:37]} 18. Qe3 {[%emt 0:01:50]} Ng6 {[%emt 0:01:44]} 19. Nxg6 {[%emt 0:00:16]} hxg6 {[%emt 0:00:02]} 20. g5 {[%emt 0:00:10]} Bxb2 {[%emt 0:00:11]} 21. Rc2 {[%emt 0:00:15]} Bxf3 {[%emt 0:00:09]} 22. Bxf3 {[%emt 0:00:13]} Be5 {[%emt 0:00:02]} 23. h3 {[%emt 0:00:16]} Bf4 {[%emt 0:00:01]} 24. Qc3 {[%emt 0:00:24]} Bxg5 {[%emt 0:00:08]} 25. Qc7 {[%emt 0:00:03]} Bf4 {[%emt 0:01:08]} 26. Qxb8 {[%emt 0:00:07]} Rxb8 {[%emt 0:00:02]} 27. e3 {[%emt 0:00:03]} Bd6 {[%emt 0:00:07]} 28. Rd1 {[%emt 0:00:01]} Rfd8 {[%emt 0:00:15]} 29. Rcd2 {[%emt 0:00:11]} Be7 {[%emt 0:00:26]} 30. Rd7 {[%emt 0:00:02]} Rxd7 {[%emt 0:00:36]} 31. Rxd7 {[%emt 0:00:02]} Bc5 {[%emt 0:00:19]} 32. Rxa7 {[%emt 0:00:09]} Rd8 {[%emt 0:00:13]} 33. Ra8 {[%emt 0:00:06]} Rxa8 {[%emt 0:00:04]} 34. Bxa8 {[%emt 0:00:02]} Kf8 {[%emt 0:00:04]} 35. Kf1 {[%emt 0:00:04]} Ke7 {[%emt 0:00:01]} 36. Bc6 {[%emt 0:00:05]} Kd6 {[%emt 0:00:01]} 37. Be8 {[%emt 0:00:03]} Ke7 {[%emt 0:00:02]} 38. Bc6 {[%emt 0:00:01]} f6 {[%emt 0:00:17]} 39. f4 {[%emt 0:00:09]} Bxe3 {[%emt 0:00:02]} 0-1

[Event "3rd FIDE WCCC Rapid G10 2019"]
[Site "Minsk"]
[Date "2019.08.17"]
[Round "9.3"]
[White "Toroptseva, Yevheniia"]
[Black "Fedorova, Olesya"]
[Result "0-1"]
[ECO "B22"]
[WhiteElo "1496"]
[BlackElo "1578"]
[Annotator "NA"]
[PlyCount "168"]
[EventDate "2019.08.16"]
[EventType "swiss"]
[EventCountry "BLR"]
[SourceTitle "playchess.com"]
[Source "ChessBase"]
[SourceQuality "1"]
[TimeControl "600+5"]

1. e4 {[%emt 0:00:00]} c5 {[%emt 0:00:00]} 2. c3 {[%emt 0:00:00]} Nf6 {[%emt 0:00:00]} 3. e5 {[%emt 0:00:00]} Nd5 {[%emt 0:00:00]} 4. d4 {[%emt 0:00:00]} cxd4 {[%emt 0:00:02]} 5. cxd4 {[%emt 0:00:00]} Nc6 {[%emt 0:00:10]} 6. Bc4 {[%emt 0:00:09]} Nb6 {[%emt 0:00:21]} 7. Bb3 {[%emt 0:00:01]} d6 {[%emt 0:00:20]} 8. f4 {[%emt 0:00:57]} dxe5 {[%emt 0:00:18]} 9. dxe5 {[%emt 0:00:02]} Qxd1+ {[%emt 0:00:04]} 10. Bxd1 {[%emt 0:00:10]} Bf5 {[%emt 0:00:24]} 11. Nc3 {[%emt 0:00:15]} Nb4 {[%emt 0:00:24]} 12. g4 {[%emt 0:00:55]} Bxg4 {[%emt 0:03:06]} 13. a3 {[%emt 0:00:23]} Nd3+ {[%emt 0:00:23]} 14. Kd2 {[%emt 0:00:04]} Nf2 {[%emt 0:00:45]} 15. Bxg4 {[%emt 0:00:08]} Nxg4 {[%emt 0:00:29]} 16. Ke2 {[%emt 0:00:04]} O-O-O {[%emt 0:00:28]} 17. h3 {[%emt 0:00:20]} Nh6 {[%emt 0:00:03]} 18. Be3 {[%emt 0:00:06]} Nf5 {[%emt 0:00:09]} 19. Bf2 {[%emt 0:00:08]} e6 {[%emt 0:00:32]} 20. Rc1 {[%emt 0:00:23]} Kb8 {[%emt 0:00:07]} 21. Nf3 {[%emt 0:00:29]} Be7 {[%emt 0:00:32]} 22. Nb5 {[%emt 0:00:59]} Rc8 {[%emt 0:00:42]} 23. a4 {[%emt 0:00:30]} Rc6 {[%emt 0:00:54]} 24. Nxa7 {[%emt 0:01:48]} Kxa7 {[%emt 0:00:19]} 25. a5 {[%emt 0:00:01]} Bd8 {[%emt 0:00:19]} 26. Rxc6 {[%emt 0:00:14]} bxc6 {[%emt 0:00:02]} 27. Rd1 {[%emt 0:00:34]} Ka6 {[%emt 0:00:22]} 28. axb6 {[%emt 0:00:48]} Bxb6 {[%emt 0:00:07]} 29. Bxb6 {[%emt 0:00:18]} Kxb6 {[%emt 0:00:01]} 30. Ng5 {[%emt 0:00:02]} f6 {[%emt 0:00:19]} 31. Nxe6 {[%emt 0:00:11]} fxe5 {[%emt 0:00:06]} 32. fxe5 {[%emt 0:00:01]} Re8 {[%emt 0:00:03]} 33. Ng5 {[%emt 0:00:52]} Rxe5+ {[%emt 0:00:02]} 34. Kf2 {[%emt 0:00:01]} h6 {[%emt 0:00:21]} 35. Nf3 {[%emt 0:00:09]} Rd5 {[%emt 0:00:03]} 36. Rxd5 {[%emt 0:00:20]} cxd5 {[%emt 0:00:01]} 37. Ke2 {[%emt 0:00:02]} Kc5 {[%emt 0:00:03]} 38. Kd3 {[%emt 0:00:01]} Kb4 {[%emt 0:00:03]} 39. Nd4 {[%emt 0:00:34]} Nd6 {[%emt 0:00:20]} 40. Ne6 {[%emt 0:00:16]} g5 {[%emt 0:00:03]} 41. Kd4 {[%emt 0:00:06]} Ne4 {[%emt 0:00:10]} 42. Kxd5 {[%emt 0:00:37]} Nf2 {[%emt 0:00:01]} 43. h4 {[%emt 0:00:15]} gxh4 {[%emt 0:00:02]} 44. Nf4 {[%emt 0:00:00]} h3 {[%emt 0:00:10]} 45. Nxh3 {[%emt 0:00:01]} Nxh3 {[%emt 0:00:01]} 46. Ke4 {[%emt 0:00:05]} Ng5+ {[%emt 0:00:02]} 47. Kf5 {[%emt 0:00:04]} Nf7 {[%emt 0:00:01]} 48. Kg6 {[%emt 0:00:08]} Kb3 {[%emt 0:00:01]} 49. Kh5 {[%emt 0:00:01]} Kxb2 50. Kh4 Kc3 {[%emt 0:00:05]} 51. Kh3 {[%emt 0:00:01]} Kd3 {[%emt 0:00:01]} 52. Kh2 {[%emt 0:00:01]} Ke3 {[%emt 0:00:01]} 53. Kh1 {[%emt 0:00:00]} Kf3 {[%emt 0:00:06]} 54. Kg1 {[%emt 0:00:01]} Ne5 {[%emt 0:00:04]} 55. Kh1 {[%emt 0:00:01]} h5 {[%emt 0:00:05]} 56. Kh2 {[%emt 0:00:00]} Ng4+ {[%emt 0:00:04]} 57. Kh3 {[%emt 0:00:05]} Nf6 {[%emt 0:00:15]} 58. Kh4 {[%emt 0:00:04]} Kf4 {[%emt 0:00:01]} 59. Kh3 {[%emt 0:00:01]} Kg5 {[%emt 0:00:05]} 60. Kg3 {[%emt 0:00:02]} Ne4+ {[%emt 0:00:04]} 61. Kh3 {[%emt 0:00:01]} Nd6 {[%emt 0:00:09]} 62. Kg3 {[%emt 0:00:03]} Nf5+ {[%emt 0:00:02]} 63. Kh3 {[%emt 0:00:00]} Kf4 {[%emt 0:00:04]} 64. Kh2 {[%emt 0:00:07]} Kg4 {[%emt 0:00:01]} 65. Kg2 {[%emt 0:00:01]} Ng3 {[%emt 0:00:09]} 66. Kh2 {[%emt 0:00:01]} h4 {[%emt 0:00:14]} 67. Kg2 {[%emt 0:00:02]} Nf5 {[%emt 0:00:12]} 68. Kh2 {[%emt 0:00:01]} Ne3 {[%emt 0:00:05]} 69. Kg1 {[%emt 0:00:02]} Kg3 {[%emt 0:00:03]} 70. Kh1 {[%emt 0:00:01]} Ng4 {[%emt 0:00:03]} 71. Kg1 {[%emt 0:00:01]} Nf2 {[%emt 0:00:01]} 72. Kf1 {[%emt 0:00:03]} h3 {[%emt 0:00:03]} 73. Kg1 {[%emt 0:00:01]} h2+ {[%emt 0:00:02]} 74. Kf1 {[%emt 0:00:01]} h1=Q+ 75. Ke2 Qf3+ {[%emt 0:00:06]} 76. Kd2 {[%emt 0:00:01]} Qe4 {[%emt 0:00:04]} 77. Kc3 {[%emt 0:00:02]} Qd5 {[%emt 0:00:03]} 78. Kb4 {[%emt 0:00:02]} Qc6 {[%emt 0:00:01]} 79. Ka5 {[%emt 0:00:01]} Qb7 {[%emt 0:00:01]} 80. Ka4 {[%emt 0:00:01]} Kf4 81. Ka3 Ke3 {[%emt 0:00:02]} 82. Ka2 {[%emt 0:00:01]} Kd3 {[%emt 0:00:02]} 83. Ka3 {[%emt 0:00:02]} Kc3 {[%emt 0:00:03]} 84. Ka2 {[%emt 0:00:04]} Qb2# {[%emt 0:00:01]} 0-1

[Event "3rd FIDE WCCC Rapid G10 2019"]
[Site "Minsk"]
[Date "2019.08.17"]
[Round "9.4"]
[White "Ho, Ngoc Vy"]
[Black "Satanovskaia, Evgeniia"]
[Result "1-0"]
[ECO "E06"]
[WhiteElo "1416"]
[BlackElo "1399"]
[Annotator "NA"]
[PlyCount "113"]
[EventDate "2019.08.16"]
[EventType "swiss"]
[EventCountry "BLR"]
[SourceTitle "playchess.com"]
[Source "ChessBase"]
[SourceQuality "1"]
[TimeControl "600+5"]

1. d4 {[%emt 0:00:00]} Nf6 {[%emt 0:00:00]} 2. c4 {[%emt 0:00:05]} e6 {[%emt 0:00:00]} 3. Nf3 {[%emt 0:00:02]} d5 {[%emt 0:00:00]} 4. g3 {[%emt 0:00:04]} Be7 {[%emt 0:00:00]} 5. Bg2 {[%emt 0:00:02]} O-O {[%emt 0:00:01]} 6. Nbd2 {[%emt 0:00:01]} c5 {[%emt 0:00:10]} 7. O-O {[%emt 0:00:06]} Nc6 {[%emt 0:00:01]} 8. cxd5 {[%emt 0:00:03]} exd5 {[%emt 0:00:17]} 9. Nb3 {[%emt 0:00:07]} c4 {[%emt 0:00:09]} 10. Nbd2 {[%emt 0:00:02]} Bf5 {[%emt 0:00:02]} 11. a3 {[%emt 0:00:11]} Qa5 {[%emt 0:00:30]} 12. Nh4 {[%emt 0:00:46]} Nxd4 {[%emt 0:01:59]} 13. e3 {[%emt 0:00:09]} Bc2 {[%emt 0:00:19]} 14. Nxc4 {[%emt 0:02:00]} Bxd1 {[%emt 0:01:22]} 15. Nxa5 {[%emt 0:00:02]} Nb3 {[%emt 0:01:43]} 16. Rxd1 {[%emt 0:01:26]} Nxa1 {[%emt 0:00:49]} 17. Bd2 {[%emt 0:00:11]} Nc2 {[%emt 0:01:07]} 18. Rc1 {[%emt 0:00:03]} Rfc8 {[%emt 0:00:33]} 19. Bc3 {[%emt 0:00:24]} Nxa3 {[%emt 0:01:12]} 20. Bh3 {[%emt 0:01:39]} Nc4 {[%emt 0:00:54]} 21. Bxc8 {[%emt 0:00:12]} Rxc8 {[%emt 0:00:03]} 22. Nf5 {[%emt 0:00:28]} Kf8 {[%emt 0:00:15]} 23. Nxe7 {[%emt 0:00:46]} Kxe7 {[%emt 0:00:03]} 24. Bxf6+ {[%emt 0:00:13]} Kxf6 {[%emt 0:00:12]} 25. Nxb7 {[%emt 0:00:13]} Rb8 {[%emt 0:00:14]} 26. b3 {[%emt 0:00:17]} Rxb7 {[%emt 0:00:05]} 27. bxc4 {[%emt 0:00:01]} Rc7 {[%emt 0:00:03]} 28. c5 {[%emt 0:00:04]} Ke6 {[%emt 0:00:02]} 29. Kg2 {[%emt 0:00:01]} Kd7 {[%emt 0:00:01]} 30. Kf3 {[%emt 0:00:01]} Kc6 {[%emt 0:00:01]} 31. Kf4 {[%emt 0:00:03]} f6 {[%emt 0:00:13]} 32. e4 {[%emt 0:00:40]} dxe4 {[%emt 0:00:05]} 33. Kxe4 {[%emt 0:00:02]} Re7+ {[%emt 0:00:02]} 34. Kd3 {[%emt 0:00:18]} Re5 {[%emt 0:00:06]} 35. Ra1 {[%emt 0:00:04]} Rd5+ {[%emt 0:00:04]} 36. Ke3 {[%emt 0:00:06]} Rd7 {[%emt 0:00:05]} 37. Ra5 {[%emt 0:00:07]} h6 {[%emt 0:00:11]} 38. f4 {[%emt 0:00:03]} Kb7 {[%emt 0:00:05]} 39. g4 {[%emt 0:00:19]} Kc6 {[%emt 0:00:07]} 40. h4 {[%emt 0:00:04]} Kb7 {[%emt 0:00:05]} 41. Ke4 {[%emt 0:00:05]} Kc6 {[%emt 0:00:05]} 42. Kf5 {[%emt 0:00:20]} Re7 {[%emt 0:00:08]} 43. Kg6 {[%emt 0:00:13]} Rd7 {[%emt 0:00:04]} 44. f5 {[%emt 0:00:26]} Re7 {[%emt 0:00:03]} 45. g5 {[%emt 0:00:09]} hxg5 {[%emt 0:00:04]} 46. hxg5 {[%emt 0:00:04]} fxg5 {[%emt 0:00:03]} 47. Kxg5 {[%emt 0:00:01]} Rd7 {[%emt 0:00:04]} 48. Kg6 {[%emt 0:00:15]} Re7 {[%emt 0:00:04]} 49. Kg5 {[%emt 0:00:37]} Rf7 {[%emt 0:00:02]} 50. Kg6 {[%emt 0:00:11]} Re7 {[%emt 0:00:04]} 51. Kg5 {[%emt 0:00:12]} Rf7 {[%emt 0:00:01]} 52. Kg4 {[%emt 0:00:01]} Re7 {[%emt 0:00:06]} 53. Kf4 {[%emt 0:00:01]} Kb7 {[%emt 0:00:11]} 54. Rb5+ {[%emt 0:00:04]} Kc6 {[%emt 0:00:03]} 55. Ra5 {[%emt 0:00:01]} Kb7 {[%emt 0:00:01]} 56. Kf3 {[%emt 0:00:04]} Re5 {[%emt 0:00:15]} 57. c6+ 1-0

[Event "3rd FIDE WCCC Rapid G10 2019"]
[Site "Minsk"]
[Date "2019.08.17"]
[Round "9.5"]
[White "Efimova, Darya"]
[Black "Kuzmina, Varvara"]
[Result "0-1"]
[ECO "A03"]
[WhiteElo "1385"]
[BlackElo "1262"]
[Annotator "NA"]
[PlyCount "88"]
[EventDate "2019.08.16"]
[EventType "swiss"]
[EventCountry "BLR"]
[SourceTitle "playchess.com"]
[Source "ChessBase"]
[SourceQuality "1"]
[TimeControl "600+5"]

1. f4 {[%emt 0:00:00]} d5 {[%emt 0:00:00]} 2. b3 Nf6 {[%emt 0:00:06]} 3. Bb2 {[%emt 0:00:00]} g6 {[%emt 0:00:01]} 4. e3 {[%emt 0:00:00]} Bg7 {[%emt 0:00:01]} 5. Nf3 {[%emt 0:00:01]} c5 {[%emt 0:00:01]} 6. Be2 {[%emt 0:00:01]} Nc6 {[%emt 0:00:01]} 7. O-O {[%emt 0:00:02]} O-O 8. Qe1 a6 {[%emt 0:00:25]} 9. d3 {[%emt 0:00:07]} b5 {[%emt 0:00:24]} 10. Qg3 {[%emt 0:00:04]} Nh5 {[%emt 0:00:33]} 11. Qh4 {[%emt 0:00:29]} Bxb2 {[%emt 0:00:14]} 12. g4 {[%emt 0:00:25]} Nf6 {[%emt 0:01:12]} 13. h3 {[%emt 0:01:17]} Bxa1 {[%emt 0:00:06]} 14. c3 {[%emt 0:00:00]} b4 {[%emt 0:00:08]} 15. cxb4 {[%emt 0:00:20]} Kg7 {[%emt 0:00:26]} 16. g5 {[%emt 0:00:30]} Ng8 {[%emt 0:00:28]} 17. e4 {[%emt 0:01:01]} Kh8 {[%emt 0:00:24]} 18. f5 {[%emt 0:00:33]} Bg7 {[%emt 0:00:23]} 19. Qf4 {[%emt 0:00:51]} dxe4 {[%emt 0:00:20]} 20. dxe4 {[%emt 0:00:13]} Qd6 {[%emt 0:00:02]} 21. Qh4 {[%emt 0:00:40]} Nd4 {[%emt 0:00:27]} 22. Nxd4 {[%emt 0:00:21]} Qxd4+ {[%emt 0:00:09]} 23. Kh2 {[%emt 0:00:22]} Be5+ {[%emt 0:00:18]} 24. Kh1 {[%emt 0:00:04]} Bb7 {[%emt 0:00:01]} 25. Bf3 {[%emt 0:00:09]} Bg7 {[%emt 0:00:39]} 26. Rd1 {[%emt 0:00:36]} Qe3 {[%emt 0:00:33]} 27. Bg2 {[%emt 0:00:01]} Rad8 {[%emt 0:00:01]} 28. Re1 {[%emt 0:00:02]} Qd4 {[%emt 0:00:20]} 29. Qf4 {[%emt 0:00:36]} Qe5 {[%emt 0:00:10]} 30. Qf2 {[%emt 0:00:10]} Rd4 {[%emt 0:00:28]} 31. Nd2 {[%emt 0:00:26]} Qd6 {[%emt 0:00:29]} 32. Nc4 {[%emt 0:00:04]} Qd7 {[%emt 0:00:19]} 33. bxc5 {[%emt 0:00:55]} Rd1 {[%emt 0:00:29]} 34. Rxd1 {[%emt 0:00:38]} Qxd1+ {[%emt 0:00:03]} 35. Kh2 {[%emt 0:00:01]} Bd4 {[%emt 0:00:05]} 36. Qf4 {[%emt 0:00:21]} Qg1+ {[%emt 0:01:18]} 37. Kg3 {[%emt 0:00:01]} Qe1+ {[%emt 0:00:26]} 38. Kg4 {[%emt 0:00:02]} Qf2 {[%emt 0:01:02]} 39. Qxf2 {[%emt 0:00:31]} Bxf2 {[%emt 0:00:01]} 40. b4 {[%emt 0:00:17]} h5+ {[%emt 0:00:15]} 41. gxh6 {[%emt 0:00:19]} Nxh6+ {[%emt 0:00:02]} 42. Kg5 {[%emt 0:00:09]} Kg7 {[%emt 0:00:07]} 43. Bf1 {[%emt 0:00:40]} Bg3 {[%emt 0:00:03]} 44. Bd3 {[%emt 0:00:07]} f6# {[%emt 0:00:01]} 0-1